fUSD/lending_fUSD_20241215
["ID","MTS","AMOUNT","RATE_DAILY","PERIOD"]
[345470822,1734279038096,-531.65,0.00019688,3]
[345470823,1734279038105,-500.0,0.00019688,3]
[345470824,1734279038114,-500.0,0.00019688,3]
[345470825,1734279038124,-379.2990796,0.00019688,3]
[345470826,1734279038133,-500.0,0.00019688,3]
[345470827,1734279038142,-500.0,0.00019688,3]
[345470828,1734279038150,-500.0,0.00019688,3]
[345470829,1734279038159,-470.0,0.00019688,3]
[345470830,1734279038168,-500.0,0.00019688,3]
[345470831,1734279038178,-539.39,0.00019688,3]
[345470832,1734279038187,-500.0,0.00019689,3]
[345470833,1734279038195,-610.16,0.00019689,3]
[345470834,1734279038205,-500.0,0.00019689,3]
[345470835,1734279038214,-500.0,0.00019689,3]
[345470836,1734279038224,-500.0,0.00019689,3]
[345470837,1734279038235,-275.77819997,0.00019689,3]
[345470838,1734279038244,-500.0,0.00019689,3]
[345470840,1734279038253,-500.0,0.00019689,3]
[345470842,1734279038263,-500.0,0.00019689,3]
[345470844,1734279038273,-500.0,0.00019689,3]
[345470846,1734279038282,-500.0,0.00019689,3]
[345470848,1734279038291,-500.0,0.00019689,3]
[345470850,1734279038300,-500.0,0.00019689,3]
[345470852,1734279038310,-500.0,0.00019689,3]
[345470854,1734279038319,-500.0,0.00019689,3]
[345470856,1734279038329,-500.0,0.00019689,3]
[345470858,1734279038338,-500.0,0.00019689,3]
[345470860,1734279038347,-500.0,0.00019689,3]
[345470862,1734279038356,-592.54,0.00019689,3]
[345470864,1734279038365,-500.0,0.00019689,3]
[345470866,1734279038374,-545.88,0.00019689,3]
[345470868,1734279038384,-500.0,0.00019689,3]
[345470870,1734279038393,-500.0,0.00019689,3]
[345470872,1734279038402,-500.0,0.00019689,3]
[345470874,1734279038411,-500.0,0.00019689,3]
[345470876,1734279038420,-500.0,0.00019689,3]
[345470878,1734279038429,-500.0,0.00019689,3]
[345470880,1734279038439,-500.0,0.00019689,3]
[345470882,1734279038448,-361.29172157,0.00019689,3]
[345470885,1734279038462,-250.15827843,0.00019689,3]
[345470887,1734279038472,-500.0,0.00019689,3]
[345470889,1734279038481,-500.0,0.00019689,3]
[345470891,1734279038490,-552.73,0.00019689,3]
[345470892,1734279038499,-256.46796155,0.00019689,3]
[345470894,1734279038509,-500.0,0.00019689,3]
[345470896,1734279038518,-500.0,0.00019689,3]
[345470899,1734279038528,-500.0,0.00019689,3]
[345470901,1734279038538,-500.0,0.00019689,3]
[345470902,1734279038547,-500.0,0.00019689,3]
[345470904,1734279038556,-500.0,0.00019689,3]
[345470906,1734279038565,-601.59,0.00019689,3]
[345470908,1734279038576,-395.64642002,0.00019689,3]
[345470911,1734279038589,-104.35357998,0.00019689,3]
[345470913,1734279038598,-500.0,0.00019689,3]
[345470915,1734279038607,-500.0,0.00019689,3]
[345470917,1734279038616,-500.0,0.00019689,3]
[345470918,1734279038624,-500.0,0.00019689,3]
[345470920,1734279038633,-500.0,0.00019689,3]
[345470922,1734279038643,-239.86267968,0.00019689,3]
[345470925,1734279038654,-260.13732032,0.00019689,3]
[345470927,1734279038662,-91.96872753,0.00019689,3]
[345470929,1734279038674,-408.03127247,0.00019689,3]
[345470931,1734279038683,-500.0,0.00019689,3]
[345470933,1734279038692,-500.0,0.00019689,3]
[345470935,1734279038700,-500.0,0.00019689,3]
[345470936,1734279038712,-500.0,0.00019689,3]
[345470939,1734279038721,-500.0,0.00019689,3]
[345470940,1734279038730,-500.0,0.00019689,3]
[345470942,1734279038739,-500.0,0.00019689,3]
[345470944,1734279038749,-500.0,0.00019689,3]
[345470946,1734279038758,-244.86750678,0.00019689,3]
[345470949,1734279038770,-255.13249322,0.00019689,3]
[345470951,1734279038779,-500.0,0.00019689,3]
[345470953,1734279038788,-500.0,0.00019689,3]
[345470955,1734279038798,-500.0,0.00019689,3]
[345470957,1734279038807,-430.20281503,0.00019689,3]
[345470959,1734279038818,-69.79718497,0.00019689,3]
[345470960,1734279038827,-500.0,0.00019689,3]
[345470962,1734279038837,-500.0,0.00019689,3]
[345470964,1734279038847,-579.47,0.00019689,3]
[345470967,1734279038857,-241.75501503,0.00019689,3]
[345470969,1734279038869,-228.45560441,0.00019689,3]
[345470971,1734279038878,-130.66439559,0.00019689,3]
[345470973,1734279038890,-369.33560441,0.00019689,3]
[345470975,1734279038901,-500.0,0.00019689,3]
[345470976,1734279038911,-500.0,0.00019689,3]
[345470979,1734279038920,-455.00813549,0.00019689,3]
[345470981,1734279038932,-44.99186451,0.00019689,3]
[345470983,1734279038943,-500.0,0.00019689,3]
[345470985,1734279038952,-500.0,0.00019689,3]
[345470987,1734279038963,-500.0,0.00019689,3]
[345470988,1734279038973,-500.0,0.00019689,3]
[345470990,1734279038983,-500.0,0.00019689,3]
[345470992,1734279038992,-630.82355674,0.00019689,3]
[345470994,1734279039002,-500.0,0.00019689,3]
[345470996,1734279039011,-500.0,0.00019689,3]
[345470998,1734279039021,-500.0,0.00019689,3]
[345471000,1734279039030,-500.0,0.00019689,3]
[345471002,1734279039039,-500.0,0.00019689,3]
[345471004,1734279039049,-500.0,0.00019689,3]
[345471006,1734279039058,-500.0,0.00019689,3]
[345471008,1734279039067,-500.0,0.00019689,3]
[345471010,1734279039077,-500.0,0.00019689,3]
[345471012,1734279039086,-500.0,0.00019689,3]
[345471014,1734279039096,-500.0,0.00019689,3]
[345471016,1734279039105,-500.0,0.00019689,3]
[345471018,1734279039114,-500.0,0.00019689,3]
[345471020,1734279039123,-542.9,0.00019689,3]
[345471022,1734279039133,-500.0,0.00019689,3]
[345471024,1734279039142,-500.0,0.00019689,3]
[345471026,1734279039151,-500.0,0.00019689,3]
[345471028,1734279039160,-500.0,0.00019689,3]
[345471030,1734279039169,-500.0,0.00019689,3]
[345471032,1734279039179,-500.0,0.00019689,3]
[345471034,1734279039188,-500.0,0.00019689,3]
[345471035,1734279039198,-623.21127536,0.00019689,3]
[345471036,1734279039208,-500.0,0.00019689,3]
[345471037,1734279039217,-500.0,0.00019689,3]
[345471038,1734279039226,-500.0,0.00019689,3]
[345471039,1734279039235,-500.0,0.00019689,3]
[345471040,1734279039244,-500.0,0.00019689,3]
[345471041,1734279039253,-500.0,0.00019689,3]
[345471042,1734279039261,-500.0,0.00019689,3]
[345471043,1734279039270,-500.0,0.00019689,3]
[345471044,1734279039279,-500.0,0.00019689,3]
[345471045,1734279039288,-500.0,0.00019689,3]
[345471046,1734279039297,-500.0,0.00019689,3]
[345471047,1734279039306,-501.48869569,0.00019689,3]
[345471049,1734279039315,-500.0,0.00019689,3]
[345471050,1734279039325,-500.0,0.00019689,3]
[345471052,1734279039334,-500.0,0.00019689,3]
[345471054,1734279039343,-500.0,0.00019689,3]
[345471056,1734279039352,-500.0,0.00019689,3]
[345471058,1734279039361,-500.0,0.00019689,3]
[345471060,1734279039370,-500.0,0.00019689,3]
[345471062,1734279039379,-500.0,0.00019689,3]
[345471064,1734279039387,-500.0,0.00019689,3]
[345471066,1734279039397,-500.0,0.00019689,3]
[345471068,1734279039406,-500.0,0.00019689,3]
[345471070,1734279039415,-500.0,0.00019689,3]
[345471072,1734279039424,-500.0,0.00019689,3]
[345471073,1734279039434,-353.30079812,0.00019689,3]
[345471075,1734279039443,-500.0,0.00019689,3]
[345471076,1734279039452,-500.0,0.00019689,3]
[345471077,1734279039462,-500.0,0.00019689,3]
[345471078,1734279039471,-500.0,0.00019689,3]
[345471079,1734279039481,-500.0,0.00019689,3]
[345471080,1734279039490,-500.0,0.00019689,3]
[345471081,1734279039500,-500.0,0.00019689,3]
[345471082,1734279039509,-500.0,0.00019689,3]
[345471083,1734279039519,-514.88002572,0.00019689,3]
[345471084,1734279039531,-500.0,0.00019689,3]
[345471085,1734279039545,-500.0,0.00019689,3]
[345471086,1734279039555,-500.0,0.00019689,3]
[345471087,1734279039564,-500.0,0.00019689,3]
[345471088,1734279039573,-500.0,0.00019689,3]
[345471089,1734279039583,-500.0,0.00019689,3]
[345471090,1734279039592,-500.0,0.00019689,3]
[345471091,1734279039602,-614.84,0.00019689,3]
[345471092,1734279039611,-500.0,0.00019689,3]
[345471093,1734279039620,-500.0,0.00019689,3]
[345471094,1734279039630,-500.0,0.00019689,3]
[345471095,1734279039639,-592.43,0.00019689,3]
[345471096,1734279039649,-500.0,0.00019689,3]
[345471097,1734279039658,-500.0,0.00019689,3]
[345471098,1734279039667,-500.0,0.00019689,3]
[345471099,1734279039677,-500.0,0.00019689,3]
[345471100,1734279039686,-500.0,0.00019689,3]
[345471101,1734279039695,-500.0,0.00019689,3]
[345471102,1734279039705,-500.0,0.00019689,3]
[345471104,1734279039714,-500.0,0.00019689,3]
[345471105,1734279039723,-500.0,0.00019689,3]
[345471106,1734279039733,-500.0,0.00019689,3]
[345471107,1734279039742,-500.0,0.00019689,3]
[345471108,1734279039751,-500.0,0.00019689,3]
[345471109,1734279039761,-500.0,0.00019689,3]
[345471110,1734279039770,-263.16263992,0.00019689,3]
[345471111,1734279039780,-500.0,0.00019689,3]
[345471112,1734279039789,-500.0,0.00019689,3]
[345471113,1734279039798,-500.0,0.00019689,3]
[345471114,1734279039807,-500.0,0.00019689,3]
[345471115,1734279039816,-500.0,0.00019689,3]
[345471116,1734279039825,-649.35,0.00019689,3]
[345471117,1734279039834,-579.96,0.00019689,3]
[345471118,1734279039843,-500.0,0.00019689,3]
[345471119,1734279039852,-500.0,0.00019689,3]
[345471120,1734279039861,-531.57,0.00019689,3]
[345471121,1734279039871,-500.0,0.00019689,3]
[345471122,1734279039880,-500.0,0.00019689,3]
[345471123,1734279039890,-500.0,0.00019689,3]
[345471124,1734279039903,-500.0,0.00019689,3]
[345471125,1734279039913,-500.0,0.00019689,3]
[345471126,1734279039922,-500.0,0.00019689,3]
[345471127,1734279039932,-500.0,0.00019689,3]
[345471128,1734279039942,-500.0,0.00019689,3]
[345471129,1734279039951,-576.21,0.00019689,3]
[345471130,1734279039962,-616.43169803,0.00019689,3]
[345471131,1734279039974,-500.0,0.00019689,3]
[345471132,1734279039983,-500.0,0.00019689,3]
[345471133,1734279039992,-525.54,0.00019689,3]
[345471134,1734279040002,-597.95,0.00019689,3]
[345471135,1734279040011,-367.01178377,0.00019689,3]
[345471136,1734279040020,-500.0,0.00019689,3]
[345471137,1734279040029,-500.0,0.00019689,3]
[345471138,1734279040038,-500.0,0.00019689,3]
[345471139,1734279040047,-500.0,0.00019689,3]
[345471140,1734279040057,-500.0,0.00019689,3]
[345471141,1734279040066,-500.0,0.00019689,3]
[345471142,1734279040075,-500.0,0.00019689,3]
[345471143,1734279040085,-500.0,0.00019689,3]
[345471144,1734279040094,-539.63,0.00019689,3]
[345471145,1734279040104,-500.0,0.00019689,3]
[345471146,1734279040113,-500.0,0.00019689,3]
[345471147,1734279040123,-500.0,0.00019689,3]
[345471148,1734279040132,-500.0,0.00019689,3]
[345471149,1734279040141,-525.57,0.00019689,3]
[345471150,1734279040151,-500.0,0.00019689,3]
[345471151,1734279040161,-596.62,0.00019689,3]
[345471152,1734279040170,-500.0,0.00019689,3]
[345471153,1734279040180,-500.0,0.00019689,3]
[345471154,1734279040190,-500.0,0.00019689,3]
[345471155,1734279040199,-594.71,0.00019689,3]
[345471156,1734279040211,-500.0,0.00019689,3]
[345471157,1734279040226,-500.0,0.00019689,3]
[345471158,1734279040235,-500.0,0.00019689,3]
[345471159,1734279040245,-500.0,0.00019689,3]
[345471160,1734279040254,-500.0,0.00019689,3]
[345471161,1734279040263,-500.0,0.00019689,3]
[345471162,1734279040272,-500.0,0.00019689,3]
[345471163,1734279040281,-529.07,0.00019689,3]
[345471164,1734279040290,-500.0,0.00019689,3]
[345471165,1734279040299,-500.0,0.00019689,3]
[345471166,1734279040309,-500.0,0.00019689,3]
[345471167,1734279040319,-500.0,0.00019689,3]
[345471168,1734279040329,-500.0,0.00019689,3]
[345471169,1734279040338,-500.0,0.00019689,3]
[345471170,1734279040348,-500.0,0.00019689,3]
[345471172,1734279040357,-500.0,0.00019689,3]
[345471174,1734279040368,-558.95,0.00019689,3]
[345471175,1734279040378,-500.0,0.00019689,3]
[345471176,1734279040388,-564.83,0.00019689,3]
[345471177,1734279040397,-500.0,0.00019689,3]
[345471178,1734279040407,-500.0,0.00019689,3]
[345471179,1734279040416,-500.0,0.00019689,3]
[345471180,1734279040427,-292.18,0.00019689,3]
[345471181,1734279040437,-500.0,0.00019689,3]
[345471182,1734279040447,-612.68,0.00019689,3]
[345471183,1734279040459,-500.0,0.00019689,3]
[345471184,1734279040469,-500.0,0.00019689,3]
[345471185,1734279040478,-642.76,0.00019689,3]
[345471186,1734279040487,-473.52871377,0.00019689,3]
[345471187,1734279040497,-500.0,0.00019689,3]
[345471188,1734279040507,-500.0,0.00019689,3]
[345471189,1734279040516,-587.96,0.00019689,3]
[345471190,1734279040525,-500.0,0.00019689,3]
[345471191,1734279040535,-500.0,0.00019689,3]
[345471192,1734279040545,-500.0,0.00019689,3]
[345471193,1734279040554,-500.0,0.00019689,3]
[345471194,1734279040564,-624.06,0.00019689,3]
[345471195,1734279040574,-500.0,0.00019689,3]
[345471196,1734279040584,-500.0,0.00019689,3]
[345471197,1734279040594,-500.0,0.00019689,3]
[345471198,1734279040604,-500.0,0.00019689,3]
[345471199,1734279040614,-500.0,0.00019689,3]
[345471200,1734279040623,-500.0,0.00019689,3]
[345471201,1734279040633,-500.0,0.00019689,3]
[345471202,1734279040643,-500.0,0.00019689,3]
[345471203,1734279040652,-500.0,0.00019689,3]
[345471204,1734279040661,-500.0,0.00019689,3]
[345471205,1734279040671,-500.0,0.00019689,3]
[345471206,1734279040680,-500.0,0.00019689,3]
[345471207,1734279040690,-500.0,0.00019689,3]
[345471208,1734279040699,-500.0,0.00019689,3]
[345471209,1734279040711,-613.83,0.00019689,3]
[345471210,1734279040721,-500.0,0.00019689,3]
[345471211,1734279040730,-611.13,0.00019689,3]
[345471212,1734279040740,-500.0,0.00019689,3]
[345471213,1734279040749,-500.0,0.00019689,3]
[345471214,1734279040758,-500.0,0.00019689,3]
[345471215,1734279040767,-500.0,0.00019689,3]
[345471216,1734279040777,-529.52,0.00019689,3]
[345471217,1734279040787,-500.0,0.00019689,3]
[345471218,1734279040796,-500.0,0.00019689,3]
[345471219,1734279040805,-500.0,0.00019689,3]
[345471220,1734279040814,-500.0,0.00019689,3]
[345471221,1734279040823,-500.0,0.00019689,3]
[345471222,1734279040832,-500.0,0.00019689,3]
[345471223,1734279040841,-581.35,0.00019689,3]
[345471224,1734279040851,-500.0,0.00019689,3]
[345471225,1734279040860,-500.0,0.00019689,3]
[345471226,1734279040870,-517.96,0.00019689,3]
[345471227,1734279040880,-500.0,0.00019689,3]
[345471228,1734279040892,-546.99487135,0.00019689,3]
[345471229,1734279040904,-546.74,0.00019689,3]
[345471230,1734279040914,-500.0,0.00019689,3]
[345471231,1734279040923,-500.0,0.00019689,3]
[345471232,1734279040935,-500.0,0.00019689,3]
[345471233,1734279040944,-500.0,0.00019689,3]
[345471234,1734279040955,-500.0,0.00019689,3]
[345471235,1734279040965,-500.0,0.00019689,3]
[345471236,1734279040976,-500.0,0.00019689,3]
[345471237,1734279040986,-576.84,0.00019689,3]
[345471238,1734279040995,-500.0,0.00019689,3]
[345471239,1734279041006,-500.0,0.00019689,3]
[345471240,1734279041015,-500.0,0.00019689,3]
[345471241,1734279041025,-500.0,0.00019689,3]
[345471242,1734279041035,-500.0,0.00019689,3]
[345471243,1734279041045,-500.0,0.00019689,3]
[345471244,1734279041055,-500.0,0.00019689,3]
[345471245,1734279041064,-500.0,0.00019689,3]
[345471246,1734279041074,-500.0,0.00019689,3]
[345471247,1734279041083,-591.81,0.00019689,3]
[345471248,1734279041092,-500.0,0.00019689,3]
[345471249,1734279041102,-597.07911297,0.00019689,3]
[345471250,1734279041113,-500.0,0.00019689,3]
[345471251,1734279041123,-500.0,0.00019689,3]
[345471252,1734279041133,-329.82,0.00019689,3]
[345471253,1734279041142,-20.455896,0.00019689,3]
[345471254,1734279041449,-479.544104,0.00019689,3]
[345471255,1734279041460,-309.35848092,0.00019689,3]
[345471256,1734279041469,-500.0,0.00019689,3]
[345471257,1734279041479,-90.44440968,0.00019689,3]
[345471258,1734279041490,-409.55559032,0.00019689,3]
[345471259,1734279041500,-515.54440968,0.00019689,3]
[345471260,1734279041512,-14.20559032,0.00019689,3]
[345471261,1734279041522,-500.0,0.00019689,3]
[345471262,1734279041531,-43.70470806,0.00019689,3]
[345471263,1734279041541,-400.97885,0.00019689,3]
[345471264,1734279041553,-55.31644194,0.00019689,3]
[345471265,1734279041563,-249.42861153,0.00019689,3]
[345471266,1734279041575,-250.57138847,0.00019689,3]
[345471267,1734279041585,-175.79328478,0.00019689,3]
[345471268,1734279041653,-324.20671522,0.00019689,3]
[345471269,1734279041663,-500.0,0.00019689,3]
[345471270,1734279041673,-500.0,0.00019689,3]
[345471271,1734279041682,-500.0,0.00019689,3]
[345471272,1734279041692,-123.94261946,0.00019689,3]
[345471273,1734279041704,-376.05738054,0.00019689,3]
[345471274,1734279041713,-500.0,0.00019689,3]
[345471275,1734279041723,-580.64,0.00019689,3]
[345471276,1734279041731,-573.26,0.00019689,3]
[345471277,1734279041741,-500.0,0.00019689,3]
[345471278,1734279041750,-500.0,0.00019689,3]
[345471279,1734279041760,-500.0,0.00019689,3]
[345471280,1734279041770,-1000.0,0.00019689,3]
[345471281,1734279041780,-500.0,0.00019689,3]
[345471282,1734279041791,-500.0,0.00019689,3]
[345471283,1734279041801,-500.0,0.00019689,3]
[345471284,1734279041811,-524.36,0.00019689,3]
[345471285,1734279041820,-500.0,0.00019689,3]
[345471286,1734279041831,-500.0,0.00019689,3]
[345471287,1734279041841,-500.0,0.00019689,3]
[345471288,1734279041850,-500.0,0.00019689,3]
[345471289,1734279041860,-500.0,0.00019689,3]
[345471290,1734279041870,-500.0,0.00019689,3]
[345471291,1734279041880,-277.79864071,0.00019689,3]
[345471292,1734279041890,-500.0,0.00019689,3]
[345471293,1734279041904,-558.7,0.00019689,3]
[345471294,1734279041914,-153.17257615,0.00019689,3]
[345471295,1734279041943,-68.01802934,0.00019689,3]
[345471296,1734279041953,-500.0,0.00019689,3]
[345471297,1734279041964,-500.0,0.00019689,3]
[345471298,1734279041974,-500.0,0.00019689,3]
[345471299,1734279041984,-500.0,0.00019689,3]
[345471300,1734279041993,-500.0,0.00019689,3]
[345471301,1734279042003,-500.0,0.00019689,3]
[345471302,1734279042013,-500.0,0.00019689,3]
[345471303,1734279042023,-500.0,0.00019689,3]
[345471304,1734279042033,-500.0,0.00019689,3]
[345471305,1734279042042,-500.0,0.00019689,3]
[345471306,1734279042052,-500.0,0.00019689,3]
[345471307,1734279042062,-500.0,0.00019689,3]
[345471308,1734279042072,-500.0,0.00019689,3]
[345471309,1734279042082,-356.11,0.00019689,3]
[345471310,1734279042091,-420.56773079,0.00019689,3]
[345471311,1734279042107,-112.17226921,0.00019689,3]
[345471312,1734279042116,-185.06220574,0.00019689,3]
[345471313,1734279042131,-252.339999,0.00019689,3]
[345471314,1734279042147,-58.04674399,0.00019689,3]
[345471315,1734279042158,-500.0,0.00019689,3]
[345471316,1734279042168,-500.0,0.00019689,3]
[345471317,1734279042177,-500.0,0.00019689,3]
[345471318,1734279042187,-532.29,0.00019689,3]
[345471319,1734279042197,-500.0,0.00019689,3]
[345471320,1734279042206,-500.0,0.00019689,3]
[345471321,1734279042215,-183.25344815,0.00019689,3]
[345471322,1734279042238,-316.74655185,0.00019689,3]
[345471323,1734279042248,-500.0,0.00019689,3]
[345471324,1734279042259,-500.0,0.00019689,3]
[345471325,1734279042269,-500.0,0.00019689,3]
[345471326,1734279042280,-587.88,0.00019689,3]
[345471327,1734279042291,-500.0,0.00019689,3]
[345471328,1734279042301,-599.56,0.00019689,3]
[345471329,1734279042312,-500.0,0.00019689,3]
[345471330,1734279042322,-500.0,0.00019689,3]
[345471331,1734279042331,-500.0,0.00019689,3]
[345471332,1734279042340,-500.0,0.00019689,3]
[345471333,1734279042351,-500.0,0.00019689,3]
[345471334,1734279042362,-2405.21037638,0.0001969,2]
[345471347,1734279042965,-6702.14165528,0.00019183,2]
[345471348,1734279042977,-247594.78962363,0.0001969,2]
[345471349,1734279042988,-1000.0,0.00019699,2]
[345471350,1734279042998,-2111.0922,0.00019699,2]
[345471351,1734279043008,-493.90986606,0.00019699,3]
[345471352,1734279043018,-500.0,0.00019699,3]
[345471353,1734279043029,-500.0,0.00019699,3]
[345471354,1734279043038,-10695.06247083,0.000197,2]
[345471355,1734279043050,-33642.74974149,0.000197,2]
[345471356,1734279043065,-3643.20933624,0.000197,2]
[345471357,1734279043078,-941.89095,0.000197,2]
[345471358,1734279043090,-4898.22962554,0.000197,2]
[345471359,1734279043103,-716.73060001,0.000197,2]
[345471360,1734279043124,-18968.7021,0.000197,2]
[345471361,1734279043135,-748.09397012,0.000197,2]
[345471362,1734279043179,-309.54460032,0.000197,2]
[345471363,1734279043191,-2608.64982251,0.000197,2]
[345471364,1734279043234,-2256.83172208,0.000197,2]
[345471365,1734279043289,-2023.31836153,0.000197,2]
[345471366,1734279043301,-4437.97070012,0.000197,2]
[345471370,1734279045753,-6702.14165528,0.00019302,2]
[345471371,1734279045763,-3075.76112547,0.000197,2]
[345471372,1734279045774,-10624.45031264,0.000197,2]
[345471373,1734279045785,-1543.97563251,0.000197,2]
[345471374,1734279045805,-18767.11344377,0.000197,2]
[345471375,1734279045860,-15217.999998,0.000197,2]
[345471376,1734279045915,-2959.85,0.000197,2]
[345471377,1734279045969,-267746.23408446,0.000197,2]
[345471378,1734279045980,-161.07221604,0.000197,2]
[345471379,1734279045990,-263.3339982,0.000197,2]
[345471380,1734279046000,-1200.0,0.000197,7]
[345471381,1734279046010,-150.0,0.00019739,2]
[345471382,1734279046020,-200.0,0.00019757,2]
[345471383,1734279046029,-150.0,0.00019761,2]
[345471384,1734279046039,-150.0,0.00019764,2]
[345471385,1734279046048,-200.0,0.00019767,2]
[345471386,1734279046058,-500.0,0.00019773,2]
[345471387,1734279046067,-162.60191074,0.00019773,2]
[345471388,1734279046077,-200.0,0.00019781,2]
[345471389,1734279046086,-200.0,0.00019785,2]
[345471390,1734279046096,-200.0,0.00019787,2]
[345471391,1734279046105,-150.0,0.00019788,2]
[345471392,1734279046115,-428.19118329,0.00019791,2]
[345471393,1734279046124,-150.0,0.00019793,2]
[345471394,1734279046134,-500.0,0.00019798,3]
[345471395,1734279046143,-500.0,0.00019798,3]
[345471396,1734279046152,-500.0,0.00019798,3]
[345471397,1734279046161,-500.0,0.00019798,3]
[345471398,1734279046171,-500.0,0.00019798,3]
[345471399,1734279046180,-500.0,0.00019798,3]
[345471401,1734279046189,-500.0,0.00019798,2]
[345471402,1734279046198,-500.0,0.00019798,3]
[345471403,1734279046208,-500.0,0.00019798,3]
[345471404,1734279046219,-500.0,0.00019798,3]
[345471405,1734279046229,-500.0,0.00019798,3]
[345471406,1734279046238,-500.0,0.00019798,3]
[345471407,1734279046247,-500.0,0.00019798,3]
[345471408,1734279046257,-561.79,0.00019798,3]
[345471409,1734279046266,-500.0,0.00019798,3]
[345471410,1734279046275,-526.99,0.00019798,3]
[345471411,1734279046285,-500.0,0.00019798,3]
[345471412,1734279046295,-500.0,0.00019798,3]
[345471413,1734279046304,-596.67,0.00019798,3]
[345471414,1734279046313,-500.0,0.00019798,3]
[345471415,1734279046323,-500.0,0.00019798,3]
[345471416,1734279046332,-500.0,0.00019798,3]
[345471417,1734279046341,-500.0,0.00019798,3]
[345471418,1734279046350,-500.0,0.00019798,3]
[345471419,1734279046360,-248.13,0.00019798,3]
[345471420,1734279046369,-470.72928845,0.00019798,3]
[345471421,1734279046379,-500.0,0.00019798,3]
[345471422,1734279046388,-500.0,0.00019798,3]
[345471423,1734279046397,-500.0,0.00019798,3]
[345471424,1734279046406,-500.0,0.00019798,3]
[345471425,1734279046419,-1116.85,0.00019798,3]
[345471426,1734279046428,-500.0,0.00019798,3]
[345471427,1734279046439,-500.0,0.00019798,3]
[345471428,1734279046449,-231.76,0.00019798,3]
[345471429,1734279046459,-152.84,0.00019798,3]
[345471430,1734279046473,-252.16,0.00019798,3]
[345471431,1734279046483,-156.602173,0.00019799,3]
[345471432,1734279046492,-500.0,0.00019799,3]
[345471433,1734279046502,-518.80759979,0.00019799,3]
[345471434,1734279046512,-500.0,0.00019799,3]
[345471435,1734279046522,-502.78681461,0.00019799,3]
[345471436,1734279046532,-500.0,0.00019799,3]
[345471437,1734279046542,-500.0,0.00019799,3]
[345471438,1734279046552,-500.89598542,0.00019799,3]
[345471439,1734279046561,-500.0,0.00019799,3]
[345471440,1734279046573,-500.0,0.00019799,3]
[345471441,1734279046584,-500.0,0.00019799,3]
[345471442,1734279046593,-500.0,0.00019799,3]
[345471443,1734279046603,-500.0,0.00019799,3]
[345471444,1734279046612,-500.0,0.00019799,3]
[345471445,1734279046622,-500.0,0.00019799,3]
[345471446,1734279046631,-500.0,0.00019799,3]
[345471447,1734279046641,-300.0,0.00019799,3]
[345471448,1734279046651,-500.0,0.00019799,3]
[345471449,1734279046659,-500.0,0.00019799,3]
[345471450,1734279046669,-191.99688244,0.00019799,3]
[345471451,1734279046679,-500.0,0.00019799,3]